fUST/lending_fUST_20250830
["ID","MTS","AMOUNT","RATE_DAILY","PERIOD"]
[382248616,1756552257040,-480.0,0.00019452,2]
[382248617,1756552257050,-480.0,0.00019452,2]
[382248618,1756552257060,-480.0,0.00019452,2]
[382248619,1756552257071,-480.0,0.00019452,2]
[382248620,1756552257080,-1263.96,0.00019452,2]
[382248621,1756552257090,-480.0,0.00019452,2]
[382248622,1756552257101,-480.0,0.00019452,2]
[382248623,1756552257111,-481.96883939,0.00019452,2]
[382248624,1756552257121,-480.0,0.00019452,2]
[382248626,1756552257132,-1991.93,0.00019452,2]
[382248628,1756552257143,-2391.03,0.00019452,2]
[382248629,1756552257154,-591.0,0.00019452,2]
[382248631,1756552257163,-480.0,0.00019452,2]
[382248633,1756552257173,-480.0,0.00019452,2]
[382248635,1756552257183,-1425.2,0.00019452,2]
[382248637,1756552257193,-480.0,0.00019452,2]
[382248639,1756552257203,-480.0,0.00019452,2]
[382248641,1756552257212,-480.0,0.00019452,2]
[382248643,1756552257222,-1300.87,0.00019452,2]
[382248645,1756552257231,-480.0,0.00019452,2]
[382248647,1756552257240,-480.0,0.00019452,2]
[382248649,1756552257249,-480.0,0.00019452,2]
[382248651,1756552257259,-713.42,0.00019452,2]
[382248653,1756552257269,-480.0,0.00019452,2]
[382248655,1756552257278,-480.0,0.00019452,2]
[382248657,1756552257287,-480.0,0.00019452,2]
[382248659,1756552257297,-686.31,0.00019452,2]
[382248661,1756552257306,-592.78,0.00019452,2]
[382248663,1756552257315,-480.0,0.00019452,2]
[382248665,1756552257325,-480.0,0.00019452,2]
[382248667,1756552257334,-480.0,0.00019452,2]
[382248668,1756552257343,-1228.58,0.00019452,2]
[382248670,1756552257353,-520.17,0.00019452,2]
[382248672,1756552257363,-480.0,0.00019452,2]
[382248674,1756552257372,-480.0,0.00019452,2]
[382248676,1756552257381,-2450.74,0.00019452,2]
[382248678,1756552257393,-480.0,0.00019452,2]
[382248680,1756552257404,-480.0,0.00019452,2]
[382248683,1756552257414,-1496.86,0.00019452,2]
[382248685,1756552257423,-480.0,0.00019452,2]
[382248687,1756552257434,-671.05,0.00019452,2]
[382248689,1756552257456,-711.75,0.00019452,2]
[382248690,1756552257467,-1326.37,0.00019452,2]
[382248693,1756552257481,-480.0,0.00019452,2]
[382248694,1756552257492,-404.79396198,0.00019452,2]
[382248697,1756552257503,-480.0,0.00019452,2]
[382248698,1756552257515,-480.0,0.00019452,2]
[382248700,1756552257532,-480.0,0.00019452,2]
[382248702,1756552257541,-552.8,0.00019452,2]
[382248704,1756552257551,-480.0,0.00019452,2]
[382248706,1756552257560,-480.0,0.00019452,2]
[382248708,1756552257569,-869.05,0.00019452,2]
[382248710,1756552257578,-683.25,0.00019452,2]
[382248712,1756552257587,-6634.62,0.00019452,2]
[382248714,1756552257596,-480.0,0.00019452,2]
[382248716,1756552257605,-480.0,0.00019452,2]
[382248718,1756552257614,-577.03,0.00019452,2]
[382248720,1756552257624,-480.0,0.00019452,2]
[382248722,1756552257633,-480.0,0.00019452,2]
[382248724,1756552257642,-626.38230486,0.00019452,2]
[382248726,1756552257651,-480.0,0.00019452,2]
[382248728,1756552257661,-1531.35,0.00019452,2]
[382248730,1756552257670,-680.41,0.00019452,2]
[382248732,1756552257679,-480.0,0.00019452,2]
[382248734,1756552257689,-480.0,0.00019452,2]
[382248736,1756552257698,-4001.4,0.00019452,2]
[382248738,1756552257708,-480.0,0.00019452,2]
[382248740,1756552257717,-647.01,0.00019452,2]
[382248742,1756552257727,-480.0,0.00019452,2]
[382248744,1756552257736,-1460.46,0.00019452,2]
[382248746,1756552257745,-480.0,0.00019452,2]
[382248748,1756552257754,-1155.78,0.00019452,2]
[382248750,1756552257764,-605.5,0.00019452,2]
[382248751,1756552257773,-480.0,0.00019452,2]
[382248753,1756552257783,-612.72,0.00019452,2]
[382248756,1756552257792,-514.66,0.00019452,2]
[382248757,1756552257801,-1123.43,0.00019452,2]
[382248760,1756552257812,-625.6,0.00019452,2]
[382248762,1756552257821,-480.0,0.00019452,2]
[382248764,1756552257830,-1313.15,0.00019452,2]
[382248765,1756552257840,-480.0,0.00019452,2]
[382248767,1756552257849,-1377.82,0.00019452,2]
[382248769,1756552257859,-920.73,0.00019452,2]
[382248771,1756552257868,-1182.46,0.00019452,2]
[382248773,1756552257877,-1138.82,0.00019452,2]
[382248776,1756552257887,-480.0,0.00019452,2]
[382248777,1756552257895,-676.29,0.00019452,2]
[382248779,1756552257904,-1489.52,0.00019452,2]
[382248781,1756552257914,-480.0,0.00019452,2]
[382248783,1756552257923,-50472.02478281,0.00019452,2]
[382248785,1756552257933,-608.0,0.00019461,2]
[382248787,1756552257942,-500.0,0.00019473,2]
[382248789,1756552257951,-500.0,0.00019473,2]
[382248791,1756552257960,-500.0,0.00019473,2]
[382248793,1756552257969,-500.0,0.00019473,2]
[382248795,1756552257979,-500.0,0.00019473,2]
[382248797,1756552257988,-500.0,0.00019473,2]
[382248799,1756552257997,-615.00819121,0.00019473,2]
[382248801,1756552258006,-500.0,0.00019473,2]
[382248803,1756552258016,-500.0,0.00019473,2]
[382248805,1756552258026,-500.0,0.00019473,2]
[382248807,1756552258035,-500.0,0.00019473,2]
[382248809,1756552258044,-500.0,0.00019473,2]
[382248811,1756552258053,-501.40951824,0.00019473,2]
[382248813,1756552258062,-500.0,0.00019473,2]
[382248815,1756552258072,-500.0,0.00019473,2]
[382248817,1756552258081,-500.0,0.00019473,2]
[382248819,1756552258090,-500.0,0.00019473,2]
[382248821,1756552258099,-500.0,0.00019473,2]
[382248823,1756552258108,-500.0,0.00019473,2]
[382248825,1756552258118,-500.0,0.00019473,2]
[382248827,1756552258127,-159.42232169,0.00019473,2]
[382248829,1756552258136,-500.11135516,0.00019473,2]
[382248831,1756552258146,-500.0,0.00019473,2]
[382248833,1756552258155,-500.0,0.00019473,2]
[382248835,1756552258164,-500.0,0.00019473,2]
[382248837,1756552258173,-500.0,0.00019473,2]
[382248839,1756552258183,-500.0,0.00019473,2]
[382248841,1756552258192,-500.0,0.00019473,2]
[382248843,1756552258201,-504.08475859,0.00019473,2]
[382248845,1756552258210,-500.0,0.00019473,2]
[382248847,1756552258219,-500.0,0.00019473,2]
[382248849,1756552258228,-500.0,0.00019473,2]
[382248851,1756552258237,-500.0,0.00019473,2]
[382248853,1756552258246,-500.0,0.00019473,2]
[382248855,1756552258255,-500.0,0.00019473,2]
[382248857,1756552258264,-500.84524801,0.00019473,2]
[382248859,1756552258274,-501.27558114,0.00019473,2]
[382248861,1756552258283,-500.0,0.00019473,2]
[382248863,1756552258292,-608.0,0.00019493,2]
[382248865,1756552258301,-608.0,0.00019496,2]
[382248867,1756552258311,-500.0,0.00019501,2]
[382248869,1756552258320,-3139.81875585,0.00019501,2]
[382248871,1756552258329,-2002.31,0.00019511,2]
[382248873,1756552258338,-500.0,0.00019512,2]
[382248875,1756552258347,-2002.31,0.00019513,2]
[382248877,1756552258356,-2002.31,0.00019513,2]
[382248879,1756552258365,-7462.49117589,0.00019521,2]
[382248881,1756552258374,-3255.99204981,0.00019556,2]
[382248883,1756552258383,-2002.31,0.00019599,2]
[382248885,1756552258393,-608.0,0.00019603,2]
[382248887,1756552258402,-2002.31,0.0001961,2]
[382248889,1756552258411,-2002.31,0.00019611,2]
[382248890,1756552258421,-2002.31,0.00019611,2]
[382248892,1756552258431,-2002.31,0.00019611,2]
[382248894,1756552258448,-2002.31,0.00019611,2]
[382248896,1756552258458,-2002.31,0.00019611,2]
[382248898,1756552258467,-2002.31,0.00019611,2]
[382248900,1756552258476,-2002.45796078,0.00019611,2]
[382248902,1756552258487,-3376.46375566,0.00019611,2]
[382248904,1756552258497,-608.0,0.00019619,2]
[382248906,1756552258506,-500.0,0.00019619,2]
[382248908,1756552258516,-500.0,0.00019621,2]
[382248910,1756552258526,-500.0,0.00019621,2]
[382248912,1756552258535,-907.15470342,0.00019621,2]
[382248914,1756552258544,-537.30438002,0.00019621,2]
[382248916,1756552258554,-511.56569157,0.00019621,2]
[382248918,1756552258563,-1010.68393738,0.00019621,2]
[382248920,1756552258571,-1000.0,0.00019621,2]
[382248922,1756552258581,-1000.0,0.00019621,2]
[382248924,1756552258590,-856.751259,0.00019621,2]
[382248926,1756552258599,-1000.0,0.00019621,2]
[382248928,1756552258608,-500.0,0.00019621,2]
[382248930,1756552258617,-838.35063444,0.00019621,2]
[382248932,1756552258626,-6105.83895114,0.00019626,2]
[382248934,1756552258636,-608.0,0.00019649,2]
[382248936,1756552258644,-3212.42495916,0.00019666,2]
[382248938,1756552258654,-2204.90263734,0.00019672,2]
[382248940,1756552258663,-608.0,0.00019682,2]
[382248942,1756552258672,-420.0,0.00019704,2]
[382248944,1756552258681,-420.0,0.00019704,2]
[382248946,1756552258691,-420.0,0.00019704,2]
[382248948,1756552258700,-351.0,0.00019704,2]
[382248950,1756552258709,-420.0,0.00019704,2]
[382248952,1756552258718,-664.80754072,0.00019714,2]
[382248954,1756552258728,-2656.57093273,0.00019714,2]
[382248956,1756552258737,-799.91288905,0.00019714,2]
[382248958,1756552258747,-455.58765908,0.00019714,2]
[382248960,1756552258756,-3196.45190465,0.00019714,2]
[382248962,1756552258765,-1822.35063631,0.00019714,2]
[382248964,1756552258774,-4096.18864278,0.00019714,2]
[382248966,1756552258783,-151.23544434,0.00019714,2]
[382248968,1756552258793,-604.33683559,0.00019714,2]
[382248983,1756552258922,-500.0,0.00019716,2]
[382248985,1756552258933,-151.0,0.00019716,2]
[382248987,1756552258944,-151.0,0.00019716,2]
[382248989,1756552258955,-151.0,0.00019716,2]
[382248991,1756552258964,-151.0,0.00019716,2]
[382248993,1756552258973,-151.0,0.00019716,2]
[382248995,1756552258982,-151.0,0.00019716,2]
[382248997,1756552258991,-151.0,0.00019716,2]
[382248998,1756552259000,-151.0,0.00019716,2]
[382249000,1756552259009,-151.0,0.00019716,2]
[382249002,1756552259019,-152.79411932,0.00019716,2]
[382249004,1756552259029,-154.25006985,0.00019716,2]
[382249006,1756552259038,-151.0,0.00019716,2]
[382249008,1756552259047,-151.0,0.00019716,2]
[382249010,1756552259056,-152.22796554,0.00019716,2]
[382249012,1756552259066,-151.0,0.00019716,2]
[382249014,1756552259076,-151.0,0.00019716,2]
[382249017,1756552259086,-500.0,0.00019716,2]
[382249019,1756552259097,-151.0,0.00019716,2]
[382249020,1756552259114,-1000.0,0.00019721,2]
[382249023,1756552259125,-1000.0,0.00019721,2]
[382249024,1756552259134,-1000.0,0.00019721,2]
[382249027,1756552259145,-511.85173203,0.00019721,2]
[382249028,1756552259154,-500.0,0.00019721,2]
[382249031,1756552259164,-1010.54796281,0.00019721,2]
[382249033,1756552259174,-705.94827638,0.00019721,2]
[382249034,1756552259183,-1000.0,0.00019721,2]
[382249036,1756552259192,-1000.0,0.00019721,2]
[382249038,1756552259202,-1000.0,0.00019721,2]
[382249040,1756552259211,-1000.0,0.00019721,2]
[382249042,1756552259221,-1000.0,0.00019721,2]
[382249044,1756552259230,-1000.0,0.00019721,2]
[382249046,1756552259239,-1000.0,0.00019721,2]
[382249048,1756552259249,-1000.0,0.00019721,2]
[382249050,1756552259258,-1002.63562332,0.00019721,2]
[382249051,1756552259267,-1000.0,0.00019721,2]
[382249052,1756552259276,-1000.0,0.00019721,2]
[382249053,1756552259285,-1000.0,0.00019721,2]
[382249054,1756552259295,-1000.0,0.00019721,2]
[382249055,1756552259304,-1000.0,0.00019721,2]
[382249056,1756552259313,-1000.0,0.00019721,2]
[382249057,1756552259323,-1000.0,0.00019721,2]
[382249058,1756552259334,-504.09410562,0.00019721,2]
[382249059,1756552259343,-1000.0,0.00019721,2]
[382249060,1756552259352,-1000.0,0.00019721,2]
[382249061,1756552259362,-503.41033099,0.00019721,2]
[382249062,1756552259371,-354.05278488,0.00019721,2]
[382249063,1756552259379,-500.0,0.00019721,2]
[382249064,1756552259389,-480.0,0.00019726,2]
[382249065,1756552259399,-480.0,0.00019726,2]
[382249066,1756552259408,-480.0,0.00019726,2]
[382249067,1756552259417,-480.0,0.00019726,2]
[382249068,1756552259426,-480.0,0.00019726,2]
[382249069,1756552259436,-596.56820289,0.00019726,2]
[382249070,1756552259447,-480.0,0.00019726,2]
[382249071,1756552259457,-480.0,0.00019726,2]
[382249072,1756552259466,-524.76141877,0.00019726,2]
[382249073,1756552259475,-480.0,0.00019726,2]
[382249074,1756552259485,-480.0,0.00019726,2]
[382249075,1756552259495,-480.0,0.00019726,2]
[382249076,1756552259503,-609.63,0.00019726,2]
[382249077,1756552259512,-480.0,0.00019726,2]
[382249078,1756552259522,-480.0,0.00019726,2]
[382249079,1756552259531,-545.11,0.00019726,2]
[382249080,1756552259541,-480.0,0.00019726,2]
[382249081,1756552259551,-480.0,0.00019726,2]
[382249082,1756552259564,-480.0,0.00019726,2]
[382249083,1756552259573,-480.0,0.00019726,2]
[382249084,1756552259582,-480.0,0.00019726,2]
[382249085,1756552259591,-480.0,0.00019726,2]
[382249086,1756552259600,-480.0,0.00019726,2]
[382249087,1756552259610,-480.0,0.00019726,2]
[382249088,1756552259619,-1000.0,0.00019726,2]
[382249089,1756552259628,-480.0,0.00019726,2]
[382249091,1756552259638,-480.0,0.00019726,2]
[382249092,1756552259647,-718.15,0.00019726,2]
[382249094,1756552259656,-483.38430396,0.00019726,2]
[382249096,1756552259665,-480.0,0.00019726,2]
[382249098,1756552259675,-480.0,0.00019726,2]
[382249100,1756552259685,-480.0,0.00019726,2]
[382249102,1756552259694,-480.0,0.00019726,2]
[382249104,1756552259704,-480.0,0.00019726,2]
[382249106,1756552259714,-500.0,0.00019726,2]
[382249109,1756552259723,-480.0,0.00019726,2]
[382249111,1756552259733,-480.0,0.00019726,2]
[382249112,1756552259743,-903.93,0.00019726,2]
[382249114,1756552259753,-480.0,0.00019726,2]
[382249116,1756552259762,-480.0,0.00019726,2]
[382249118,1756552259771,-480.0,0.00019726,2]
[382249120,1756552259781,-480.0,0.00019726,2]
[382249122,1756552259790,-480.0,0.00019726,2]
[382249124,1756552259799,-876.75,0.00019726,2]
[382249126,1756552259809,-480.0,0.00019726,2]
[382249128,1756552259818,-943.68,0.00019726,2]
[382249130,1756552259827,-480.0,0.00019726,2]
[382249132,1756552259836,-480.0,0.00019726,2]
[382249134,1756552259846,-480.0,0.00019726,2]
[382249136,1756552259855,-480.0,0.00019726,2]
[382249138,1756552259864,-480.0,0.00019726,2]
[382249140,1756552259874,-480.0,0.00019726,2]
[382249142,1756552259883,-480.0,0.00019726,2]
[382249144,1756552259892,-480.0,0.00019726,2]
[382249146,1756552259902,-480.0,0.00019726,2]
[382249148,1756552259910,-480.0,0.00019726,2]
[382249150,1756552259922,-175.00450516,0.00019726,2]
[382249152,1756552259932,-480.0,0.00019726,2]
[382249154,1756552259942,-515.89,0.00019726,2]
[382249156,1756552259951,-480.0,0.00019726,2]
[382249158,1756552259960,-480.0,0.00019726,2]
[382249160,1756552259970,-480.0,0.00019726,2]
[382249162,1756552259979,-480.0,0.00019726,2]
[382249164,1756552259988,-1321.11,0.00019726,2]
[382249166,1756552259997,-480.0,0.00019726,2]
[382249168,1756552260006,-480.0,0.00019726,2]
[382249170,1756552260016,-480.0,0.00019726,2]
[382249172,1756552260025,-480.0,0.00019726,2]
[382249174,1756552260035,-480.0,0.00019726,2]
[382249176,1756552260045,-480.0,0.00019726,2]
[382249178,1756552260056,-480.0,0.00019726,2]
[382249180,1756552260065,-480.0,0.00019726,2]
[382249182,1756552260075,-480.0,0.00019726,2]
[382249184,1756552260085,-989.85,0.00019726,2]
[382249186,1756552260095,-1196.35,0.00019726,2]
[382249188,1756552260105,-480.0,0.00019726,2]
[382249190,1756552260118,-480.0,0.00019726,2]
[382249192,1756552260127,-480.0,0.00019726,2]
[382249194,1756552260137,-480.0,0.00019726,2]
[382249196,1756552260147,-480.0,0.00019726,2]
[382249198,1756552260156,-528.66,0.00019726,2]
[382249200,1756552260167,-480.0,0.00019726,2]
[382249202,1756552260178,-480.0,0.00019726,2]
[382249204,1756552260188,-480.0,0.00019726,2]
[382249206,1756552260198,-480.0,0.00019726,2]
[382249208,1756552260207,-480.0,0.00019726,2]
[382249210,1756552260216,-480.0,0.00019726,2]
[382249212,1756552260226,-480.0,0.00019726,2]
[382249214,1756552260235,-922.9,0.00019726,2]
[382249216,1756552260246,-987.67,0.00019726,2]
[382249218,1756552260259,-480.0,0.00019726,2]
[382249220,1756552260268,-480.0,0.00019726,2]
[382249222,1756552260277,-480.0,0.00019726,2]
[382249224,1756552260287,-480.0,0.00019726,2]
[382249226,1756552260296,-480.0,0.00019726,2]
[382249228,1756552260307,-773.41,0.00019726,2]
[382249230,1756552260316,-592.37,0.00019726,2]
[382249232,1756552260326,-480.0,0.00019726,2]
[382249234,1756552260336,-480.0,0.00019726,2]
[382249236,1756552260346,-480.0,0.00019726,2]
[382249238,1756552260355,-589.87,0.00019726,2]
[382249240,1756552260365,-480.0,0.00019726,2]
[382249242,1756552260375,-539.36,0.00019726,2]
[382249244,1756552260386,-480.0,0.00019726,2]
[382249246,1756552260396,-761.44,0.00019726,2]
[382249248,1756552260405,-480.0,0.00019726,2]
[382249250,1756552260414,-480.0,0.00019726,2]
[382249252,1756552260424,-620.49,0.00019726,2]
[382249254,1756552260433,-480.0,0.00019726,2]
[382249256,1756552260447,-1421.74,0.00019726,2]
[382249258,1756552260457,-480.0,0.00019726,2]
[382249260,1756552260467,-480.0,0.00019726,2]
[382249262,1756552260476,-480.0,0.00019726,2]
[382249264,1756552260486,-480.0,0.00019726,2]
[382249266,1756552260495,-480.0,0.00019726,2]
[382249268,1756552260504,-480.0,0.00019726,2]
[382249270,1756552260515,-176.22159004,0.00019726,2]
[382249272,1756552260525,-631.33,0.00019726,2]
[382249274,1756552260534,-480.0,0.00019726,2]
[382249276,1756552260543,-858.06,0.00019726,2]
[382249278,1756552260553,-480.0,0.00019726,2]
[382249280,1756552260562,-480.0,0.00019726,2]
[382249282,1756552260572,-480.0,0.00019726,2]
[382249284,1756552260581,-480.0,0.00019726,2]
[382249286,1756552260590,-1089.22,0.00019726,2]
[382249288,1756552260600,-480.0,0.00019726,2]
[382249290,1756552260609,-571.73,0.00019726,2]
[382249292,1756552260619,-480.0,0.00019726,2]
[382249294,1756552260628,-480.0,0.00019726,2]
[382249296,1756552260638,-996.36,0.00019726,2]
[382249298,1756552260647,-546.67,0.00019726,2]
[382249300,1756552260656,-480.0,0.00019726,2]
[382249302,1756552260666,-480.0,0.00019726,2]
[382249304,1756552260676,-480.0,0.00019726,2]
[382249306,1756552260685,-480.0,0.00019726,2]
[382249308,1756552260694,-480.0,0.00019726,2]
[382249310,1756552260703,-480.0,0.00019726,2]
[382249312,1756552260714,-480.0,0.00019726,2]
[382249314,1756552260725,-480.0,0.00019726,2]
[382249316,1756552260734,-739.32,0.00019726,2]
[382249318,1756552260743,-484.81,0.00019726,2]
[382249320,1756552260752,-581.47,0.00019726,2]
[382249322,1756552260761,-480.0,0.00019726,2]
[382249324,1756552260770,-480.0,0.00019726,2]
[382249326,1756552260780,-480.0,0.00019726,2]
[382249328,1756552260789,-480.0,0.00019726,2]
[382249329,1756552260798,-480.0,0.00019726,2]
[382249332,1756552260808,-405.54603907,0.00019726,2]
[382249333,1756552260817,-1593.65,0.00019726,2]
[382249335,1756552260827,-1095.57,0.00019726,2]
[382249338,1756552260837,-1623.34,0.00019726,2]
[382249339,1756552260847,-480.0,0.00019726,2]
[382249341,1756552260858,-1498.09,0.00019726,2]
[382249344,1756552260868,-480.0,0.00019726,2]
[382249346,1756552260877,-618.9092344,0.00019726,2]
[382249360,1756552260996,-480.0,0.00019726,2]
[382249362,1756552261016,-480.0,0.00019726,2]
[382249364,1756552261026,-480.0,0.00019726,2]
[382249366,1756552261036,-480.0,0.00019726,2]
[382249368,1756552261045,-480.0,0.00019726,2]
[382249370,1756552261055,-480.0,0.00019726,2]
[382249372,1756552261065,-477.08904032,0.00019726,2]
[382249412,1756552261444,-2.91095968,0.00019726,2]
[382249414,1756552261454,-480.0,0.00019726,2]
[382249416,1756552261463,-535.46,0.00019726,2]
[382249418,1756552261472,-480.0,0.00019726,2]
[382249420,1756552261482,-480.0,0.00019726,2]
[382249422,1756552261491,-480.0,0.00019726,2]
[382249424,1756552261500,-480.0,0.00019726,2]
[382249426,1756552261509,-1564.33,0.00019726,2]
[382249428,1756552261521,-655.37,0.00019726,2]
[382249430,1756552261530,-480.0,0.00019726,2]
[382249432,1756552261539,-480.0,0.00019726,2]
[382249434,1756552261548,-480.15,0.00019726,2]
[382249436,1756552261557,-1654.79,0.00019726,2]
[382249438,1756552261567,-480.0,0.00019726,2]
[382249440,1756552261576,-480.0,0.00019726,2]
[382249442,1756552261585,-495.88,0.00019726,2]
[382249444,1756552261594,-480.0,0.00019726,2]
[382249446,1756552261604,-480.0,0.00019726,2]
[382249448,1756552261613,-480.0,0.00019726,2]
[382249450,1756552261622,-806.22,0.00019726,2]
[382249452,1756552261632,-480.0,0.00019726,2]
[382249454,1756552261643,-1408.65,0.00019726,2]
[382249456,1756552261651,-480.0,0.00019726,2]
[382249458,1756552261660,-608.18,0.00019726,2]
[382249460,1756552261670,-829.77,0.00019726,2]
[382249462,1756552261679,-480.0,0.00019726,2]
[382249464,1756552261688,-527.64,0.00019726,2]
[382249466,1756552261697,-480.0,0.00019726,2]
[382249468,1756552261706,-1184.03,0.00019726,2]
[382249470,1756552261715,-208.32049847,0.00019726,2]
[382249472,1756552261724,-480.0,0.00019726,2]
[382249474,1756552261733,-1502.98,0.00019726,2]
[382249476,1756552261743,-480.0,0.00019726,2]
[382249478,1756552261752,-480.0,0.00019726,2]
[382249480,1756552261761,-480.0,0.00019726,2]
[382249482,1756552261770,-480.0,0.00019726,2]
[382249484,1756552261780,-480.0,0.00019726,2]
[382249486,1756552261789,-480.0,0.00019726,2]
[382249488,1756552261799,-480.0,0.00019726,2]
[382249490,1756552261808,-493.98,0.00019726,2]
[382249492,1756552261818,-480.0,0.00019726,2]
[382249494,1756552261828,-480.0,0.00019726,2]
[382249496,1756552261837,-480.0,0.00019726,2]
[382249498,1756552261847,-524.01,0.00019726,2]
[382249500,1756552261859,-1000.44,0.00019726,2]
[382249503,1756552261869,-480.0,0.00019726,2]
[382249505,1756552261878,-480.0,0.00019726,2]
[382249507,1756552261888,-480.0,0.00019726,2]
[382249509,1756552261898,-185.38089498,0.00019726,2]
[382249511,1756552261907,-480.0,0.00019726,2]
[382249513,1756552261916,-480.0,0.00019726,2]
[382249515,1756552261926,-480.0,0.00019726,2]
[382249517,1756552261935,-480.0,0.00019726,2]
[382249519,1756552261945,-480.0,0.00019726,2]
[382249521,1756552261954,-480.0,0.00019726,2]
[382249523,1756552261963,-480.0,0.00019726,2]
[382249525,1756552261973,-480.0,0.00019726,2]
[382249526,1756552261982,-1468.8,0.00019726,2]
[382249527,1756552261992,-480.0,0.00019726,2]
[382249528,1756552262001,-480.0,0.00019726,2]
[382249529,1756552262010,-480.0,0.00019726,2]
[382249530,1756552262019,-480.0,0.00019726,2]
[382249531,1756552262028,-658.8,0.00019726,2]
[382249532,1756552262037,-687.07,0.00019726,2]
[382249533,1756552262046,-480.0,0.00019726,2]
[382249534,1756552262055,-480.0,0.00019726,2]
[382249535,1756552262064,-480.0,0.00019726,2]
[382249536,1756552262073,-480.0,0.00019726,2]
[382249537,1756552262082,-1515.47,0.00019726,2]
[382249538,1756552262091,-480.0,0.00019726,2]
[382249540,1756552262100,-480.0,0.00019726,2]
[382249542,1756552262109,-1050.64,0.00019726,2]
[382249544,1756552262118,-480.0,0.00019726,2]
[382249546,1756552262127,-1230.04,0.00019726,2]
[382249548,1756552262136,-480.0,0.00019726,2]
[382249550,1756552262146,-488.42,0.00019726,2]
[382249552,1756552262155,-480.0,0.00019726,2]
[382249554,1756552262164,-812.59,0.00019726,2]
[382249556,1756552262174,-480.0,0.00019726,2]
[382249558,1756552262183,-480.0,0.00019726,2]
[382249560,1756552262194,-767.39,0.00019726,2]
[382249562,1756552262203,-480.0,0.00019726,2]
[382249564,1756552262212,-480.0,0.00019726,2]
[382249566,1756552262221,-480.0,0.00019726,2]
[382249568,1756552262229,-480.0,0.00019726,2]
[382249570,1756552262239,-820.59,0.00019726,2]
[382249572,1756552262248,-552.54,0.00019726,2]
[382249574,1756552262257,-1451.95,0.00019726,2]
[382249576,1756552262266,-480.0,0.00019726,2]
[382249578,1756552262275,-706.25,0.00019726,2]
[382249580,1756552262284,-1252.37,0.00019726,2]
[382249582,1756552262293,-480.0,0.00019726,2]
[382249584,1756552262302,-480.0,0.00019726,2]
[382249586,1756552262311,-1168.66,0.00019726,2]
[382249588,1756552262321,-480.0,0.00019726,2]
[382249590,1756552262330,-994.02,0.00019726,2]
[382249592,1756552262339,-266.39182052,0.00019726,2]
[382249594,1756552262348,-480.0,0.00019726,2]
[382249596,1756552262357,-480.0,0.00019726,2]
[382249598,1756552262366,-196.8485077,0.00019726,2]
[382249600,1756552262376,-1119.41,0.00019726,2]
[382249602,1756552262386,-480.0,0.00019726,2]
[382249617,1756552262395,-480.0,0.00019726,2]
[382249619,1756552262532,-578.86,0.00019726,2]
[382249621,1756552262541,-686.69,0.00019726,2]
[382249623,1756552262550,-480.0,0.00019726,2]
[382249625,1756552262560,-480.0,0.00019726,2]